[Event "*** Titled Tuesday Blitz"]
[Site "Chess.com"]
[Date "2020.05.26"]
[Round "1"]
[White "lili_ani"]
[Black "Shivagami"]
[Result "1-0"]
[WhiteElo "2552"]
[BlackElo "2204"]
[TimeControl "180+1"]
[EndTime "10:07:40 PDT"]
[Termination "lili_ani won on time"]

1. e4 {[%clk 0:03:00.9]} 1... e5 {[%clk 0:02:53.4]} 2. Nf3 {[%clk 0:03:00]} 2...
Nc6 {[%clk 0:02:53.5]} 3. Bc4 {[%clk 0:02:56.9]} 3... Nf6 {[%clk 0:02:53.4]} 4.
d3 {[%clk 0:02:55.5]} 4... Be7 {[%clk 0:02:52.9]} 5. O-O {[%clk 0:02:55]} 5...
O-O {[%clk 0:02:52.9]} 6. Nc3 {[%clk 0:02:51.9]} 6... d6 {[%clk 0:02:51.3]} 7.
h3 {[%clk 0:02:50.3]} 7... Na5 {[%clk 0:02:49.8]} 8. Be3 {[%clk 0:02:27.3]} 8...
c6 {[%clk 0:02:39.8]} 9. a3 {[%clk 0:02:18]} 9... Nxc4 {[%clk 0:02:34.8]} 10.
dxc4 {[%clk 0:02:17.7]} 10... Be6 {[%clk 0:02:25.7]} 11. Qe2 {[%clk 0:02:17.5]}
11... Qc7 {[%clk 0:02:21.4]} 12. Rfd1 {[%clk 0:02:14.3]} 12... Rad8 {[%clk
0:02:13.4]} 13. b3 {[%clk 0:02:04.8]} 13... a6 {[%clk 0:02:12]} 14. a4 {[%clk
0:02:04]} 14... d5 {[%clk 0:02:10.3]} 15. exd5 {[%clk 0:01:57.1]} 15... cxd5
{[%clk 0:02:10.4]} 16. cxd5 {[%clk 0:01:57]} 16... Nxd5 {[%clk 0:01:59.9]} 17.
Nxd5 {[%clk 0:01:56.4]} 17... Bxd5 {[%clk 0:02:00.2]} 18. c4 {[%clk 0:01:53.7]}
18... Bc6 {[%clk 0:01:59.4]} 19. a5 {[%clk 0:01:51]} 19... Rxd1+ {[%clk
0:01:44.7]} 20. Qxd1 {[%clk 0:01:51.9]} 20... Rd8 {[%clk 0:01:42]} 21. Qe2
{[%clk 0:01:50.6]} 21... e4 {[%clk 0:01:30.3]} 22. Nd4 {[%clk 0:01:49.7]} 22...
Bf6 {[%clk 0:01:25.4]} 23. Nxc6 {[%clk 0:01:48.9]} 23... Qxc6 {[%clk 0:01:22.5]}
24. Rd1 {[%clk 0:01:47.1]} 24... g6 {[%clk 0:01:12.5]} 25. Bb6 {[%clk
0:01:42.6]} 25... Rxd1+ {[%clk 0:01:08.2]} 26. Qxd1 {[%clk 0:01:43.5]} 26... Kg7
{[%clk 0:01:01.6]} 27. Qe2 {[%clk 0:01:39.4]} 27... Qe6 {[%clk 0:00:43.6]} 28.
b4 {[%clk 0:01:34.6]} 28... Qe5 {[%clk 0:00:36.9]} 29. b5 {[%clk 0:01:25]} 29...
axb5 {[%clk 0:00:29.6]} 30. cxb5 {[%clk 0:01:24.3]} 30... Qa1+ {[%clk
0:00:28.5]} 31. Kh2 {[%clk 0:01:24.2]} 31... Be5+ {[%clk 0:00:28.5]} 32. g3
{[%clk 0:01:23.4]} 32... f5 {[%clk 0:00:24.6]} 33. a6 {[%clk 0:01:07.7]} 33...
bxa6 {[%clk 0:00:24.2]} 34. bxa6 {[%clk 0:01:07.7]} 34... f4 {[%clk 0:00:24.6]}
35. a7 {[%clk 0:01:03.6]} 35... fxg3+ {[%clk 0:00:20]} 36. fxg3 {[%clk
0:01:03.6]} 36... Qa3 {[%clk 0:00:19.6]} 37. Bf2 {[%clk 0:00:59.6]} 37... h5
{[%clk 0:00:11.5]} 38. Kg2 {[%clk 0:00:45.9]} 38... h4 {[%clk 0:00:10.1]} 39.
gxh4 {[%clk 0:00:44.1]} 39... Qa4 {[%clk 0:00:08.7]} 40. Qg4 {[%clk 0:00:37.5]}
40... Bf6 {[%clk 0:00:03.4]} 41. h5 {[%clk 0:00:35.2]} 41... g5 {[%clk 0:00:03]}
42. Qe6 {[%clk 0:00:33.4]} 42... e3 {[%clk 0:00:01.5]} 43. Qxe3 {[%clk
0:00:32.4]} 43... Qd7 {[%clk 0:00:01.2]} 44. Qf3 {[%clk 0:00:31.5]} 1-0

[Event "*** Titled Tuesday Blitz"]
[Site "Chess.com"]
[Date "2020.05.26"]
[Round "1"]
[White "MoonlighT89"]
[Black "CMS13"]
[Result "1-0"]
[WhiteElo "2542"]
[BlackElo "2191"]
[TimeControl "180+1"]
[EndTime "10:07:41 PDT"]
[Termination "MoonlighT89 won by resignation"]

1. e4 {[%clk 0:03:00.9]} 1... e5 {[%clk 0:02:59.8]} 2. Nf3 {[%clk 0:03:00.6]}
2... Nc6 {[%clk 0:02:59.2]} 3. Bc4 {[%clk 0:03:01.2]} 3... Nf6 {[%clk
0:02:58.8]} 4. d3 {[%clk 0:03:00.9]} 4... Be7 {[%clk 0:02:59]} 5. O-O {[%clk
0:03:00.5]} 5... O-O {[%clk 0:02:58.5]} 6. Re1 {[%clk 0:02:59.6]} 6... d6 {[%clk
0:02:58.9]} 7. c3 {[%clk 0:02:56.8]} 7... Kh8 {[%clk 0:02:57.8]} 8. d4 {[%clk
0:02:46.9]} 8... Nxe4 {[%clk 0:02:25]} 9. Rxe4 {[%clk 0:02:25.5]} 9... d5 {[%clk
0:02:08.2]} 10. Re1 {[%clk 0:02:23.6]} 10... dxc4 {[%clk 0:01:58.1]} 11. d5
{[%clk 0:02:17.3]} 11... e4 {[%clk 0:01:25.2]} 12. dxc6 {[%clk 0:01:10.6]} 12...
Qxd1 {[%clk 0:01:24.1]} 13. Rxd1 {[%clk 0:01:11.5]} 13... exf3 {[%clk
0:01:23.7]} 14. gxf3 {[%clk 0:01:12.2]} 14... bxc6 {[%clk 0:01:21.8]} 15. Nd2
{[%clk 0:01:10.7]} 15... Be6 {[%clk 0:01:20.7]} 16. Ne4 {[%clk 0:01:07.8]} 16...
Rfd8 {[%clk 0:01:15.7]} 17. Bf4 {[%clk 0:01:03.7]} 17... Rab8 {[%clk 0:01:04]}
18. Bxc7 {[%clk 0:00:44.3]} 18... Rxd1+ {[%clk 0:01:03.6]} 19. Rxd1 {[%clk
0:00:45.2]} 19... Rxb2 {[%clk 0:01:02.7]} 20. Bd8 {[%clk 0:00:29.1]} 20... Bf8
{[%clk 0:00:57.3]} 21. Ba5 {[%clk 0:00:27.5]} 21... g6 {[%clk 0:00:31.8]} 22.
Rd8 {[%clk 0:00:23.4]} 22... Kg7 {[%clk 0:00:30.7]} 23. Bc7 {[%clk 0:00:18.4]}
23... Be7 {[%clk 0:00:18.3]} 24. Be5+ {[%clk 0:00:15.6]} 24... f6 {[%clk
0:00:18.5]} 25. Re8 {[%clk 0:00:16.1]} 25... Kf7 {[%clk 0:00:17.7]} 26. Rh8
{[%clk 0:00:15.9]} 26... fxe5 {[%clk 0:00:17.3]} 27. Rxh7+ {[%clk 0:00:16.8]}
27... Ke8 {[%clk 0:00:17.4]} 28. Rh8+ {[%clk 0:00:17.2]} 28... Kd7 {[%clk
0:00:17.1]} 29. Kg2 {[%clk 0:00:18.1]} 29... Bd5 {[%clk 0:00:16]} 30. Ra8 {[%clk
0:00:16.4]} 30... Bxe4 {[%clk 0:00:15.6]} 31. Rxa7+ {[%clk 0:00:16.9]} 31... Ke6
{[%clk 0:00:15.4]} 32. fxe4 {[%clk 0:00:17.8]} 32... Bc5 {[%clk 0:00:15.2]} 33.
Rg7 {[%clk 0:00:16.8]} 33... Rxf2+ {[%clk 0:00:15.1]} 34. Kg3 {[%clk 0:00:17.7]}
34... Kf6 {[%clk 0:00:14.9]} 35. Rc7 {[%clk 0:00:18.3]} 35... Bd6 {[%clk
0:00:13.4]} 36. Rxc6 {[%clk 0:00:19.2]} 36... Rd2 {[%clk 0:00:13.8]} 37. Rxc4
{[%clk 0:00:19.3]} 37... Rd3+ {[%clk 0:00:14.2]} 38. Kg4 {[%clk 0:00:19]} 38...
Rd2 {[%clk 0:00:14]} 39. a4 {[%clk 0:00:18.8]} 39... Rxh2 {[%clk 0:00:13.7]} 40.
Rc6 {[%clk 0:00:17.7]} 40... Rd2 {[%clk 0:00:13.6]} 41. c4 {[%clk 0:00:17.8]}
41... Ke6 {[%clk 0:00:14]} 42. c5 {[%clk 0:00:16.9]} 42... Kd7 {[%clk
0:00:11.8]} 43. Rxd6+ {[%clk 0:00:17.3]} 43... Rxd6 {[%clk 0:00:11.1]} 44. cxd6
{[%clk 0:00:18.2]} 44... Kxd6 {[%clk 0:00:11.7]} 45. Kg5 {[%clk 0:00:18.5]}
45... Kc5 {[%clk 0:00:12.6]} 46. Kxg6 {[%clk 0:00:18.9]} 46... Kd4 {[%clk
0:00:11.2]} 47. Kf5 {[%clk 0:00:19.4]} 47... Kc5 {[%clk 0:00:10.6]} 48. Kxe5
{[%clk 0:00:19.8]} 48... Kb4 {[%clk 0:00:11.1]} 49. Kd6 {[%clk 0:00:20.7]} 49...
Kxa4 {[%clk 0:00:11.4]} 50. e5 {[%clk 0:00:20.9]} 50... Kb5 {[%clk 0:00:12.3]}
51. e6 {[%clk 0:00:21.8]} 51... Kc4 {[%clk 0:00:12.6]} 52. e7 {[%clk 0:00:22.7]}
52... Kd4 {[%clk 0:00:13.3]} 53. e8=Q {[%clk 0:00:23.6]} 1-0

[Event "*** Titled Tuesday Blitz"]
[Site "Chess.com"]
[Date "2020.05.26"]
[Round "1"]
[White "Gerodot71"]
[Black "SGchess01"]
[Result "1/2-1/2"]
[WhiteElo "2418"]
[BlackElo "2764"]
[TimeControl "180+1"]
[EndTime "10:07:44 PDT"]
[Termination "Game drawn by repetition"]

1. d4 {[%clk 0:03:00.9]} 1... Nf6 {[%clk 0:02:59.7]} 2. c4 {[%clk 0:03:01.1]}
2... e6 {[%clk 0:03:00]} 3. Nf3 {[%clk 0:03:00.8]} 3... d5 {[%clk 0:02:59.8]} 4.
g3 {[%clk 0:03:00.8]} 4... Be7 {[%clk 0:02:59.6]} 5. Bg2 {[%clk 0:02:59.8]} 5...
O-O {[%clk 0:03:00.2]} 6. O-O {[%clk 0:02:59.5]} 6... dxc4 {[%clk 0:03:00.4]} 7.
Qc2 {[%clk 0:02:59.2]} 7... b5 {[%clk 0:02:59.9]} 8. a4 {[%clk 0:02:42.3]} 8...
b4 {[%clk 0:03:00]} 9. Nfd2 {[%clk 0:02:41.9]} 9... Nd5 {[%clk 0:02:57.9]} 10.
Nxc4 {[%clk 0:02:41.3]} 10... c5 {[%clk 0:02:57.8]} 11. dxc5 {[%clk 0:02:38.3]}
11... Ba6 {[%clk 0:02:57.3]} 12. Rd1 {[%clk 0:02:34.8]} 12... Nd7 {[%clk
0:02:56.2]} 13. e4 {[%clk 0:02:23.9]} 13... N5f6 {[%clk 0:02:55.3]} 14. b3
{[%clk 0:02:17.3]} 14... Rc8 {[%clk 0:02:53.4]} 15. Bb2 {[%clk 0:02:16.2]} 15...
Rxc5 {[%clk 0:02:52.4]} 16. Nbd2 {[%clk 0:02:16.5]} 16... Qc7 {[%clk 0:02:50.1]}
17. Rac1 {[%clk 0:02:15.2]} 17... h6 {[%clk 0:02:41.6]} 18. Qb1 {[%clk
0:02:13.7]} 18... Rc8 {[%clk 0:02:39.7]} 19. Ne3 {[%clk 0:02:10.8]} 19... Qb8
{[%clk 0:02:19.7]} 20. Bf1 {[%clk 0:02:04.8]} 20... Bxf1 {[%clk 0:02:18.4]} 21.
Kxf1 {[%clk 0:02:05.3]} 21... h5 {[%clk 0:02:15.4]} 22. h4 {[%clk 0:02:03.6]}
22... Qb7 {[%clk 0:02:04.2]} 23. Nec4 {[%clk 0:02:00.4]} 23... Nb6 {[%clk
0:01:56.3]} 24. Nxb6 {[%clk 0:01:52.6]} 24... Qxb6 {[%clk 0:01:55.6]} 25. Nc4
{[%clk 0:01:49.4]} 25... Qb7 {[%clk 0:01:54.1]} 26. f3 {[%clk 0:01:46.4]} 26...
Ne8 {[%clk 0:01:35.8]} 27. Ke2 {[%clk 0:01:43.2]} 27... Qa6 {[%clk 0:01:33]} 28.
Qd3 {[%clk 0:01:37]} 28... Bf6 {[%clk 0:01:23.5]} 29. Bxf6 {[%clk 0:01:25.7]}
29... Nxf6 {[%clk 0:01:24.4]} 30. Nb2 {[%clk 0:01:26]} 30... Qc6 {[%clk
0:01:20.3]} 31. Rxc5 {[%clk 0:01:24.8]} 31... Qxc5 {[%clk 0:01:21.2]} 32. Qc4
{[%clk 0:01:24.3]} 32... Qf8 {[%clk 0:01:20.3]} 33. Qd4 {[%clk 0:01:20.1]} 33...
Rc3 {[%clk 0:01:18.5]} 34. Rd3 {[%clk 0:01:18.3]} 34... Rc2+ {[%clk 0:01:13.9]}
35. Rd2 {[%clk 0:01:18.3]} 35... Rxd2+ {[%clk 0:00:49.1]} 36. Kxd2 {[%clk
0:01:18.6]} 36... Qb8 {[%clk 0:00:49.7]} 37. Qf2 {[%clk 0:01:11.9]} 37... Qe5
{[%clk 0:00:47.5]} 38. Nd3 {[%clk 0:01:04.4]} 38... Qc3+ {[%clk 0:00:47.1]} 39.
Ke2 {[%clk 0:01:04.7]} 39... Qc2+ {[%clk 0:00:45.3]} 40. Ke3 {[%clk 0:01:04.8]}
40... Qxb3 {[%clk 0:00:46]} 41. Qb2 {[%clk 0:01:05.1]} 41... Qxb2 {[%clk
0:00:42.1]} 42. Nxb2 {[%clk 0:01:05.5]} 42... Nd7 {[%clk 0:00:41.3]} 43. Kd4
{[%clk 0:01:03.4]} 43... Kf8 {[%clk 0:00:41.5]} 44. Kc4 {[%clk 0:01:01.7]} 44...
Ne5+ {[%clk 0:00:41.1]} 45. Kxb4 {[%clk 0:01:00.2]} 45... Nxf3 {[%clk 0:00:42]}
46. Kb5 {[%clk 0:00:56.9]} 46... g5 {[%clk 0:00:41.4]} 47. hxg5 {[%clk
0:00:55.9]} 47... Nxg5 {[%clk 0:00:42.3]} 48. Nd3 {[%clk 0:00:47.2]} 48... Nxe4
{[%clk 0:00:41.9]} 49. Nf4 {[%clk 0:00:47.5]} 49... Nxg3 {[%clk 0:00:37.9]} 50.
Ka6 {[%clk 0:00:47.5]} 50... e5 {[%clk 0:00:37.5]} 51. Ng2 {[%clk 0:00:46.1]}
51... Ke7 {[%clk 0:00:35.7]} 52. Kxa7 {[%clk 0:00:46]} 52... Kd6 {[%clk
0:00:35.8]} 53. Kb6 {[%clk 0:00:43.9]} 53... Ne2 {[%clk 0:00:31.2]} 54. a5
{[%clk 0:00:43.3]} 54... Nc3 {[%clk 0:00:31]} 55. Ne3 {[%clk 0:00:39.9]} 55...
Na4+ {[%clk 0:00:25.1]} 56. Kb5 {[%clk 0:00:37.9]} 56... Nc5 {[%clk 0:00:25.3]}
57. Nc4+ {[%clk 0:00:36.8]} 57... Kd5 {[%clk 0:00:25.8]} 58. Ne3+ {[%clk
0:00:37]} 58... Kd4 {[%clk 0:00:26.1]} 59. Nf5+ {[%clk 0:00:35.9]} 59... Kd5
{[%clk 0:00:24.4]} 60. Ne3+ {[%clk 0:00:36.3]} 60... Kd4 {[%clk 0:00:24.9]} 61.
Nf5+ {[%clk 0:00:35.9]} 61... Kd5 {[%clk 0:00:25.3]} 62. Ne3+ {[%clk 0:00:35.8]}
1/2-1/2

[Event "*** Titled Tuesday Blitz"]
[Site "Chess.com"]
[Date "2020.05.26"]
[Round "1"]
[White "Onwgs"]
[Black "MikeSailer"]
[Result "0-1"]
[WhiteElo "2471"]
[BlackElo "2088"]
[TimeControl "180+1"]
[EndTime "10:07:45 PDT"]
[Termination "MikeSailer won by checkmate"]

1. e4 {[%clk 0:02:30.7]} 1... d5 {[%clk 0:02:59.4]} 2. exd5 {[%clk 0:02:30.8]}
2... Qxd5 {[%clk 0:02:59.5]} 3. Nc3 {[%clk 0:02:30.1]} 3... Qd6 {[%clk
0:02:59.9]} 4. d4 {[%clk 0:02:29.8]} 4... Nf6 {[%clk 0:03:00.5]} 5. Nf3 {[%clk
0:02:30.2]} 5... c6 {[%clk 0:03:00.2]} 6. Be2 {[%clk 0:02:29.6]} 6... Bg4 {[%clk
0:03:00.3]} 7. O-O {[%clk 0:02:29.1]} 7... e6 {[%clk 0:03:00.8]} 8. Ne5 {[%clk
0:02:28.9]} 8... Bxe2 {[%clk 0:03:00.4]} 9. Nxe2 {[%clk 0:02:29]} 9... Be7
{[%clk 0:02:54.4]} 10. Bf4 {[%clk 0:02:28.7]} 10... Qd8 {[%clk 0:02:54.9]} 11.
c4 {[%clk 0:02:28.6]} 11... Nbd7 {[%clk 0:02:52.6]} 12. Nc3 {[%clk 0:02:28.3]}
12... Nxe5 {[%clk 0:02:51.4]} 13. Bxe5 {[%clk 0:02:29.2]} 13... O-O {[%clk
0:02:43.6]} 14. Re1 {[%clk 0:02:27.9]} 14... Bd6 {[%clk 0:02:22.8]} 15. Qf3
{[%clk 0:02:26.7]} 15... Bxe5 {[%clk 0:01:57.3]} 16. dxe5 {[%clk 0:02:27.5]}
16... Nd7 {[%clk 0:01:57.5]} 17. Rad1 {[%clk 0:02:27.4]} 17... Qc7 {[%clk
0:01:53.5]} 18. Qg3 {[%clk 0:02:27.6]} 18... Rad8 {[%clk 0:01:42.7]} 19. Re4
{[%clk 0:02:21.7]} 19... Nc5 {[%clk 0:01:27.9]} 20. Rxd8 {[%clk 0:02:15.4]}
20... Rxd8 {[%clk 0:01:26.8]} 21. Rg4 {[%clk 0:02:16.3]} 21... g6 {[%clk
0:01:06.1]} 22. h4 {[%clk 0:02:14.4]} 22... Rd3 {[%clk 0:01:01.9]} 23. Qf4
{[%clk 0:02:11.1]} 23... Nd7 {[%clk 0:00:45.1]} 24. Rg5 {[%clk 0:01:13.7]} 24...
h6 {[%clk 0:00:45.4]} 25. Rg3 {[%clk 0:01:10.1]} 25... Qxe5 {[%clk 0:00:43.4]}
26. Qxh6 {[%clk 0:00:56.9]} 26... Rxg3 {[%clk 0:00:37.6]} 27. fxg3 {[%clk
0:00:57.8]} 27... Qd4+ {[%clk 0:00:32.7]} 28. Kh1 {[%clk 0:00:57.8]} 28... Nf6
{[%clk 0:00:30]} 29. Qf4 {[%clk 0:00:54.1]} 29... Qd8 {[%clk 0:00:17.9]} 30. Kh2
{[%clk 0:00:51.8]} 30... Kg7 {[%clk 0:00:18.3]} 31. Qe5 {[%clk 0:00:51.7]} 31...
Kg8 {[%clk 0:00:14.9]} 32. Ne2 {[%clk 0:00:50]} 32... Ng4+ {[%clk 0:00:15.1]}
33. Kh3 {[%clk 0:00:50.2]} 33... Nxe5 {[%clk 0:00:15.7]} 34. Nf4 {[%clk
0:00:51.1]} 34... Qd4 {[%clk 0:00:14.5]} 35. Kh2 {[%clk 0:00:50.5]} 35... Qxc4
{[%clk 0:00:13.9]} 36. b3 {[%clk 0:00:49.7]} 36... Qc2 {[%clk 0:00:13.8]} 37.
Kh3 {[%clk 0:00:49.9]} 37... Qxa2 {[%clk 0:00:14]} 38. h5 {[%clk 0:00:48.9]}
38... Qxb3 {[%clk 0:00:12.8]} 39. hxg6 {[%clk 0:00:48.4]} 39... Nxg6 {[%clk
0:00:13.2]} 40. Nh5 {[%clk 0:00:47.7]} 40... Qc3 {[%clk 0:00:10.5]} 41. Kg4
{[%clk 0:00:47.2]} 41... Qd4+ {[%clk 0:00:09.8]} 42. Kg5 {[%clk 0:00:47.1]}
42... Qe5+ {[%clk 0:00:09.5]} 43. Kh6 {[%clk 0:00:47.5]} 43... Qh8+ {[%clk
0:00:07.1]} 44. Kg5 {[%clk 0:00:47.7]} 44... Qxh5+ {[%clk 0:00:05.4]} 45. Kxh5
{[%clk 0:00:48.1]} 45... a5 {[%clk 0:00:06.3]} 46. Kg5 {[%clk 0:00:48.5]} 46...
a4 {[%clk 0:00:07.2]} 47. Kh6 {[%clk 0:00:48.4]} 47... a3 {[%clk 0:00:07.4]} 48.
g4 {[%clk 0:00:49.3]} 48... a2 {[%clk 0:00:08.2]} 49. Kg5 {[%clk 0:00:50.1]}
49... a1=Q {[%clk 0:00:08.7]} 50. Kh6 {[%clk 0:00:51]} 50... Qh8+ {[%clk
0:00:08.7]} 51. Kg5 {[%clk 0:00:51.5]} 51... Qh4# {[%clk 0:00:09.2]} 0-1

[Event "*** Titled Tuesday Blitz"]
[Site "Chess.com"]
[Date "2020.05.26"]
[Round "1"]
[White "Feegus"]
[Black "HunterBRR"]
[Result "1-0"]
[WhiteElo "2470"]
[BlackElo "1951"]
[TimeControl "180+1"]
[EndTime "10:07:45 PDT"]
[Termination "Feegus won on time"]

1. Nf3 {[%clk 0:02:39.7]} 1... Nf6 {[%clk 0:02:58.1]} 2. g3 {[%clk 0:02:40.6]}
2... g6 {[%clk 0:02:57.6]} 3. Bg2 {[%clk 0:02:41.5]} 3... Bg7 {[%clk 0:02:57.3]}
4. O-O {[%clk 0:02:42.4]} 4... O-O {[%clk 0:02:56.8]} 5. c4 {[%clk 0:02:43.3]}
5... d6 {[%clk 0:02:56.5]} 6. Nc3 {[%clk 0:02:43.1]} 6... Nc6 {[%clk 0:02:54.6]}
7. d4 {[%clk 0:02:42.9]} 7... Bf5 {[%clk 0:02:54.3]} 8. Bf4 {[%clk 0:02:40.4]}
8... Re8 {[%clk 0:02:46]} 9. d5 {[%clk 0:02:39.8]} 9... Na5 {[%clk 0:02:44.8]}
10. Nd2 {[%clk 0:02:35.3]} 10... c5 {[%clk 0:02:32.7]} 11. e4 {[%clk 0:02:34.6]}
11... Bd7 {[%clk 0:02:31.5]} 12. Rb1 {[%clk 0:02:31.9]} 12... b6 {[%clk
0:02:30.4]} 13. a3 {[%clk 0:02:31.4]} 13... Nb7 {[%clk 0:02:26.2]} 14. Be3
{[%clk 0:02:27.5]} 14... e6 {[%clk 0:02:21.2]} 15. f3 {[%clk 0:02:24.9]} 15...
exd5 {[%clk 0:02:19.6]} 16. cxd5 {[%clk 0:02:25]} 16... b5 {[%clk 0:02:08.8]}
17. Kh1 {[%clk 0:02:24.3]} 17... a5 {[%clk 0:02:04.7]} 18. b4 {[%clk 0:02:21.8]}
18... axb4 {[%clk 0:01:40.3]} 19. axb4 {[%clk 0:02:22.7]} 19... Ng4 {[%clk
0:01:26.3]} 20. fxg4 {[%clk 0:02:22.3]} 20... Bxc3 {[%clk 0:01:26]} 21. bxc5
{[%clk 0:02:22.6]} 21... Nxc5 {[%clk 0:01:24.9]} 22. Qc2 {[%clk 0:02:00.6]}
22... b4 {[%clk 0:01:09.2]} 23. Nc4 {[%clk 0:01:57.6]} 23... Bb5 {[%clk
0:01:00.7]} 24. Qf2 {[%clk 0:01:41.2]} 24... Bxc4 {[%clk 0:00:32.1]} 25. Qxf7+
{[%clk 0:01:02.5]} 25... Kh8 {[%clk 0:00:31]} 26. Rf4 {[%clk 0:00:46.1]} 26...
Rf8 {[%clk 0:00:28.1]} 27. Qxf8+ {[%clk 0:00:45.7]} 27... Qxf8 {[%clk
0:00:27.6]} 28. Rxf8+ {[%clk 0:00:46.6]} 28... Rxf8 {[%clk 0:00:27.7]} 29. Bf4
{[%clk 0:00:45.8]} 29... Be5 {[%clk 0:00:24.7]} 30. Bxe5+ {[%clk 0:00:44.6]}
30... dxe5 {[%clk 0:00:25.4]} 31. Rxb4 {[%clk 0:00:45.2]} 31... Bd3 {[%clk
0:00:23]} 32. h4 {[%clk 0:00:40.6]} 32... Ra8 {[%clk 0:00:17.5]} 33. g5 {[%clk
0:00:38.4]} 33... Ra1+ {[%clk 0:00:16]} 34. Kh2 {[%clk 0:00:38.1]} 34... Ra2
{[%clk 0:00:15.8]} 35. Kh3 {[%clk 0:00:37]} 35... Re2 {[%clk 0:00:11.4]} 36. Bf3
{[%clk 0:00:35.9]} 36... Re3 {[%clk 0:00:10.9]} 37. Bg4 {[%clk 0:00:21.3]} 37...
Bxe4 {[%clk 0:00:10.5]} 38. Rb5 {[%clk 0:00:16.2]} 38... Nd3 {[%clk 0:00:05.5]}
39. Be6 {[%clk 0:00:15.8]} 39... Bf5+ {[%clk 0:00:05]} 40. Bxf5 {[%clk
0:00:14.4]} 40... gxf5 {[%clk 0:00:05.9]} 41. h5 {[%clk 0:00:14.2]} 41... Nf2+
{[%clk 0:00:04.6]} 42. Kg2 {[%clk 0:00:13.7]} 42... Ne4 {[%clk 0:00:04.6]} 43.
h6 {[%clk 0:00:11.3]} 1-0

[Event "*** Titled Tuesday Blitz"]
[Site "Chess.com"]
[Date "2020.05.26"]
[Round "1"]
[White "Parhamov"]
[Black "djano"]
[Result "1-0"]
[WhiteElo "3103"]
[BlackElo "2455"]
[TimeControl "180+1"]
[EndTime "10:07:46 PDT"]
[Termination "Parhamov won by resignation"]

1. e4 {[%clk 0:02:59.8]} 1... c5 {[%clk 0:02:59.4]} 2. Nf3 {[%clk 0:02:58.1]}
2... Nc6 {[%clk 0:02:58.6]} 3. Bb5 {[%clk 0:02:56.8]} 3... g6 {[%clk 0:02:58]}
4. Bxc6 {[%clk 0:02:55.1]} 4... bxc6 {[%clk 0:02:58.9]} 5. O-O {[%clk
0:02:52.7]} 5... Bg7 {[%clk 0:02:59.1]} 6. c3 {[%clk 0:02:52.8]} 6... Nf6 {[%clk
0:02:53.9]} 7. Re1 {[%clk 0:02:51.9]} 7... O-O {[%clk 0:02:52.8]} 8. h3 {[%clk
0:02:52.1]} 8... Rb8 {[%clk 0:02:43.3]} 9. d4 {[%clk 0:02:42.6]} 9... cxd4
{[%clk 0:02:43.3]} 10. cxd4 {[%clk 0:02:42.6]} 10... d5 {[%clk 0:02:42.3]} 11.
e5 {[%clk 0:02:42.3]} 11... Ne4 {[%clk 0:02:42.6]} 12. Nbd2 {[%clk 0:02:42.4]}
12... Nxd2 {[%clk 0:02:36.5]} 13. Qxd2 {[%clk 0:02:41.8]} 13... Qb6 {[%clk
0:02:22.9]} 14. b3 {[%clk 0:02:41.1]} 14... c5 {[%clk 0:02:21.4]} 15. Ba3 {[%clk
0:02:40.1]} 15... cxd4 {[%clk 0:02:17.5]} 16. Bxe7 {[%clk 0:02:39.7]} 16... Re8
{[%clk 0:02:17.8]} 17. Bd6 {[%clk 0:02:38.5]} 17... Rb7 {[%clk 0:02:12.6]} 18.
Rac1 {[%clk 0:02:35.3]} 18... Bd7 {[%clk 0:02:01.4]} 19. Nxd4 {[%clk 0:02:32.4]}
19... Qa6 {[%clk 0:01:52.9]} 20. Rc5 {[%clk 0:02:28.6]} 20... Rb6 {[%clk
0:01:36.6]} 21. Rxd5 {[%clk 0:02:24.4]} 21... Qb7 {[%clk 0:01:25.8]} 22. Nf3
{[%clk 0:01:57.6]} 22... Bc6 {[%clk 0:01:19.6]} 23. Rd3 {[%clk 0:01:54.1]} 23...
Be4 {[%clk 0:01:14.8]} 24. Rc3 {[%clk 0:01:47.3]} 24... Rc6 {[%clk 0:00:40.8]}
25. Rxc6 {[%clk 0:01:24.6]} 25... Bxc6 {[%clk 0:00:39.8]} 26. Qc3 {[%clk
0:01:18.3]} 26... Rc8 {[%clk 0:00:32.2]} 27. Rc1 {[%clk 0:01:12.3]} 27... Bd7
{[%clk 0:00:32.5]} 28. Qd2 {[%clk 0:01:12.1]} 28... h6 {[%clk 0:00:29.8]} 29.
Rxc8+ {[%clk 0:01:06.3]} 29... Bxc8 {[%clk 0:00:30.1]} 30. Qc3 {[%clk 0:01:05]}
30... Be6 {[%clk 0:00:27.8]} 31. Qc7 {[%clk 0:00:37.2]} 31... Qa6 {[%clk
0:00:26.8]} 32. Qc2 {[%clk 0:00:35.1]} 32... Qb7 {[%clk 0:00:24.5]} 33. Nd4
{[%clk 0:00:34.1]} 33... Bd5 {[%clk 0:00:24.4]} 34. f3 {[%clk 0:00:32.3]} 34...
Kh7 {[%clk 0:00:21.2]} 35. Qc5 {[%clk 0:00:31.5]} 35... Be6 {[%clk 0:00:18.2]}
36. Nxe6 {[%clk 0:00:31]} 36... fxe6 {[%clk 0:00:18.7]} 37. Qc7 {[%clk
0:00:30.8]} 37... Qxc7 {[%clk 0:00:12.5]} 38. Bxc7 {[%clk 0:00:31.7]} 38... Kg8
{[%clk 0:00:12.9]} 39. Bd6 {[%clk 0:00:30.8]} 39... Kf7 {[%clk 0:00:13]} 40. Kf2
{[%clk 0:00:30.9]} 40... Ke8 {[%clk 0:00:13.4]} 41. b4 {[%clk 0:00:31]} 41...
Kd7 {[%clk 0:00:13.6]} 42. b5 {[%clk 0:00:31.5]} 42... g5 {[%clk 0:00:13.5]} 43.
g4 {[%clk 0:00:31.1]} 43... Kc8 {[%clk 0:00:10.8]} 44. a4 {[%clk 0:00:30.4]}
44... Kb7 {[%clk 0:00:11.2]} 45. a5 {[%clk 0:00:30.3]} 45... a6 {[%clk
0:00:10.3]} 46. b6 {[%clk 0:00:30.2]} 46... Kc6 {[%clk 0:00:10.8]} 47. Kg3
{[%clk 0:00:29.9]} 47... Bh8 {[%clk 0:00:10.7]} 48. h4 {[%clk 0:00:30]} 48...
Bg7 {[%clk 0:00:11.2]} 49. f4 {[%clk 0:00:30.2]} 49... gxh4+ {[%clk 0:00:10.5]}
50. Kxh4 {[%clk 0:00:30.3]} 1-0